bitfinex/quotes_ETHUSD_20250520
["timestamp","ask_amount","ask_price","bid_price","bid_amount"]
[1747749947251,0.1,2481.9,2481.6,8.0]
[1747749947445,0.1,2481.9,2481.8,1.3425]
[1747749947646,0.1,2481.9,2481.8,12.968048]
[1747749947939,4.02965828,2481.6,2481.5,1.3444]
[1747749948140,4.02965828,2481.6,2481.5,19.53243163]
[1747749948291,4.02965828,2481.6,2481.5,21.65753163]
[1747749948495,4.02958565,2481.7,2481.6,8.0]
[1747749948702,4.02933354,2481.8,2481.7,0.55]
[1747749948933,4.02949591,2481.7,2481.6,8.0]
[1747749949103,4.02965828,2481.6,2481.5,9.2314]
[1747749949440,4.02958513,2481.7,2481.6,8.55]
[1747749949612,4.02958513,2481.7,2481.6,8.0]
[1747749950200,4.02965828,2481.6,2481.5,16.437]
[1747749950636,4.03014548,2481.3,2481.2,1.3028]
[1747749950960,4.03105496,2480.8,2480.4,0.824]
[1747749951132,4.03030791,2481.2,2481.1,17.4]
[1747749951305,4.03030791,2481.2,2481.1,25.835]
[1747749952268,4.84050791,2481.2,2481.1,25.835]
[1747749954344,4.82954527,2480.5,2480.4,17.399]
[1747749954514,4.82954527,2480.5,2480.4,8.435]
[1747749956247,4.03144527,2480.5,2480.4,8.435]
[1747749956428,4.03144527,2480.5,2480.4,9.2785]
[1747749958241,4.03144527,2480.5,2480.4,18.6198]
[1747749958568,4.0313387,2480.6,2480.5,8.0]
[1747749958873,4.03144527,2480.5,2480.4,10.0698]
[1747749959047,4.03136416,2480.6,2480.4,21.5338]
[1747749959253,4.03076088,2481.0,2480.5,32.39352704]
[1747749959548,4.03098365,2480.8,2480.6,15.758808]
[1747749959743,4.03098365,2480.8,2480.7,0.55]
[1747749959914,4.03098365,2480.8,2480.6,0.55]
[1747749959915,4.03112024,2480.7,2480.6,0.38212019]
[1747749960114,4.03087634,2480.9,2480.7,8.55]
[1747749960330,4.02949591,2481.7,2480.9,8.0]
[1747749960563,4.0306328,2481.0,2480.9,9.3282]
[1747749960722,4.0306328,2481.0,2480.9,17.401]
[1747749960913,4.0306328,2481.0,2480.9,25.836]
[1747749961910,4.0306328,2481.0,2480.9,33.836]
[1747749962117,4.03039859,2481.2,2481.0,8.55]
[1747749962445,4.03039859,2481.2,2481.1,8.55]
[1747749962446,4.03030791,2481.2,2481.1,8.55]
[1747749962647,4.02973145,2481.6,2481.2,8.55]
[1747749962814,4.02973145,2481.6,2481.2,0.55]
[1747749963015,4.02982067,2481.5,2481.4,0.55]
[1747749963216,4.02982067,2481.5,2481.4,16.435]
[1747749963449,4.02982067,2481.5,2481.4,18.60092251]
[1747749964119,4.02982067,2481.5,2481.4,23.07482251]
[1747749964438,4.02982067,2481.5,2481.4,0.22443867]
[1747749964633,4.02982067,2481.5,2481.4,8.65943867]
[1747749965035,4.02982067,2481.5,2481.4,8.435]
[1747749966835,4.80472067,2481.5,2481.4,8.435]
[1747749967043,4.02982067,2481.5,2481.4,8.435]
[1747749967383,4.02982067,2481.5,2481.4,9.2785]
[1747749967750,4.02982067,2481.5,2481.4,8.435]
[1747749970867,4.85072067,2481.5,2481.4,8.435]
[1747749974487,4.85072067,2481.5,2480.9,17.401]
[1747749974662,4.0306328,2481.0,2480.9,17.401]
[1747749974863,0.7518,2481.8,2480.9,33.823]
[1747749975062,4.02949591,2481.7,2481.0,9.7401]
[1747749975391,4.03047035,2481.1,2481.0,9.96506469]
[1747749975759,4.03047035,2481.1,2481.0,14.48243969]
[1747749976162,4.03047035,2481.1,2481.0,9.96506469]
[1747749976486,4.03047035,2481.1,2481.0,10.46506469]
[1747749976690,4.03047035,2481.1,2481.0,10.84906232]
[1747749977691,4.03047035,2481.1,2481.0,13.70671532]
[1747749978494,4.03047035,2481.1,2481.0,2.84906232]
[1747749978708,4.03047035,2481.1,2481.0,1.10896232]
[1747749978906,4.03047035,2481.1,2481.0,9.03096232]
[1747749978907,4.79147035,2481.1,2481.0,9.03096232]
[1747749979285,4.79147035,2481.1,2481.0,8.422]
[1747749980881,4.8023328,2481.0,2480.9,17.401]
[1747749981096,4.8023328,2481.0,2480.9,25.823]
[1747749981820,4.03258327,2479.8,2479.7,0.48259015]
[1747749981981,4.03258327,2479.8,2479.7,26.30559015]
[1747749982186,4.03258327,2479.8,2479.7,37.00049452]
[1747749982595,4.03258327,2479.8,2479.7,29.00049452]
[1747749982920,4.0324846,2479.9,2479.7,36.51790437]
[1747749983082,4.0324846,2479.9,2479.8,8.0]
[1747749983481,4.0324846,2479.9,2479.8,8.22509452]
[1747749983681,4.0324846,2479.9,2479.8,11.89939441]
[1747749984817,4.03209548,2480.1,2480.0,0.8141]
[1747749985894,0.8035,2480.8,2480.1,0.55]
[1747749986121,4.03242066,2479.9,2479.8,11.67429989]
[1747749986423,4.03242066,2479.9,2479.8,16.423]
[1747749986625,4.03242066,2479.9,2479.8,8.64813996]
[1747749987124,4.03258327,2479.8,2479.7,25.4]
[1747749987310,4.03258327,2479.8,2479.7,33.823]
[1747749987688,4.03258327,2479.8,2479.7,25.823]
[1747749988109,4.03258327,2479.8,2479.7,36.9553]
[1747749988309,4.03258327,2479.8,2479.7,36.4063]
[1747749988509,4.03258327,2479.8,2479.7,36.63133614]
[1747749988923,4.03258327,2479.8,2479.7,38.88601114]
[1747749989535,4.03258327,2479.8,2479.7,36.63133614]
[1747749989694,4.03258327,2479.8,2479.7,34.04903614]
[1747749990031,4.03258327,2479.8,2479.7,25.824]
[1747749990827,4.03258327,2479.8,2479.7,25.825]
[1747749991185,4.79468327,2479.8,2479.7,17.4]
[1747749993493,12.79468327,2479.8,2479.7,17.4]
[1747749994834,4.79468327,2479.8,2479.7,17.4]
[1747749999495,4.03258327,2479.8,2479.7,17.4]
[1747749999696,4.03258327,2479.8,2479.7,19.9825]
[1747749999944,4.03355921,2479.2,2479.1,0.1]
[1747750000145,4.03355921,2479.2,2479.1,25.936]
[1747750000326,4.03355921,2479.2,2479.1,33.936]
[1747750000900,4.03355921,2479.2,2479.1,25.936]
[1747750003216,4.79635921,2479.2,2479.1,25.936]
[1747750004941,4.03355921,2479.2,2479.1,25.936]
[1747750005257,4.03355921,2479.2,2479.1,27.95084876]
[1747750005618,4.03355921,2479.2,2479.1,25.936]
[1747750006069,4.03355921,2479.2,2479.1,25.926]
[1747750007161,4.03355921,2479.2,2479.1,33.926]
[1747750008756,4.03330721,2479.4,2479.1,33.926]
[1747750008962,4.03344075,2479.3,2479.1,33.926]
[1747750009120,4.03290974,2479.6,2479.3,0.815]
[1747750009323,4.03323384,2479.4,2479.3,8.815]
[1747750010633,4.03339652,2479.3,2479.1,17.509]
[1747750010937,4.03339652,2479.3,2479.2,8.417]
[1747750012157,4.03355921,2479.2,2479.1,17.509]
[1747750012320,4.03355921,2479.2,2479.1,25.926]
[1747750012843,4.83505921,2479.2,2479.1,25.926]
[1747750013463,4.83505921,2479.2,2479.1,17.509]
[1747750013639,4.83505921,2479.2,2479.1,25.926]
[1747750016671,4.83505921,2479.2,2479.1,17.509]
[1747750017041,4.83505921,2479.2,2479.1,0.1]
[1747750019081,4.03355921,2479.2,2479.1,0.1]
[1747750020456,4.03355921,2479.2,2479.1,8.518]
[1747750020853,4.84305921,2479.2,2479.1,0.1]
[1747750021165,4.84305921,2479.2,2479.1,8.519]
[1747750022530,4.03355921,2479.2,2479.1,8.519]
[1747750022764,8.24863768,2479.2,2479.1,8.519]
[1747750024133,8.24863768,2479.2,2479.1,0.1]
[1747750024389,9.01113768,2479.2,2479.1,8.519]
[1747750024677,9.01113768,2479.2,2479.1,0.1]
[1747750025263,27.67113768,2479.2,2479.1,0.1]
[1747750025643,12.81177285,2478.7,2478.6,8.419]
[1747750025975,17.02685132,2478.7,2478.6,8.419]
[1747750026685,4.8656984,2478.5,2478.4,17.412]
[1747750026983,4.8656984,2478.5,2477.5,17.417]
[1747750026984,4.84087537,2477.9,2477.5,17.417]
[1747750027183,8.25124249,2477.6,2477.5,17.417]
[1747750027356,4.03632694,2477.5,2477.1,0.48259015]
[1747750027556,8.25173127,2477.3,2477.2,8.42]
[1747750028105,9.04033127,2477.3,2477.2,8.42]
[1747750029348,4.8252528,2477.3,2477.2,8.42]
[1747750029600,4.0366528,2477.3,2477.2,8.42]
[1747750030403,4.03730469,2476.9,2476.8,17.417]
[1747750030710,4.03730469,2476.9,2476.8,25.839]
[1747750030849,4.03730469,2476.9,2476.8,17.417]
[1747750031197,4.03730469,2476.9,2476.8,25.839]
[1747750031685,4.03730469,2476.9,2476.8,8.422]
[1747750031882,12.03730469,2476.9,2476.8,8.422]
[1747750032055,4.80941985,2476.4,2476.3,0.45476376]
[1747750032254,17.29418823,2476.4,2476.3,0.45476376]
[1747750033082,4.0386091,2476.1,2476.0,17.421]
[1747750033281,8.52337748,2476.1,2476.0,25.831]
[1747750033482,17.30267748,2476.1,2476.0,25.831]
[1747750033657,17.85267748,2476.1,2476.0,8.41]
[1747750033863,17.30267748,2476.1,2476.0,8.41]
[1747750034271,17.69632934,2476.1,2476.0,8.41]
[1747750034860,4.03975115,2475.4,2475.3,17.425]
[1747750035069,4.03975115,2475.4,2475.3,25.835]
[1747750035600,4.04089384,2474.7,2474.6,25.835]
[1747750035803,4.04187381,2474.1,2474.0,0.8137]
[1747750035971,4.04187381,2474.1,2474.0,26.6547]
[1747750036166,4.04187381,2474.1,2474.0,18.2427]
[1747750036416,4.04187381,2474.1,2474.0,25.841]
[1747750036724,4.04187381,2474.1,2473.5,8.89459015]
[1747750036725,4.04269081,2473.6,2473.5,8.89459015]
[1747750036870,4.82569081,2473.6,2473.5,8.412]
[1747750037067,12.82569081,2473.6,2473.5,8.412]
[1747750037503,4.82569081,2473.6,2473.5,8.412]
[1747750037706,4.04269081,2473.6,2473.5,8.412]
[1747750038518,4.04269081,2473.6,2473.5,9.33199]
[1747750038805,4.04238611,2473.8,2473.6,8.0]
[1747750039102,4.04247655,2473.8,2473.6,8.0]
[1747750039314,4.0415163,2474.4,2473.6,8.0]
[1747750039474,4.04216643,2474.0,2473.7,1.733199]
[1747750039675,4.04236397,2473.8,2473.7,1.733199]
[1747750039972,4.0423601,2473.9,2473.7,2.284]
[1747750040308,4.04198898,2474.1,2473.8,0.7961]
[1747750040605,4.04220057,2473.9,2473.8,0.7961]
[1747750040971,4.04220057,2473.9,2473.8,8.416]
[1747750041704,4.04334465,2473.2,2472.6,0.7799]
[1747750041905,4.04334465,2473.2,2473.1,25.846]
[1747750042721,4.04334465,2473.2,2472.4,17.44]
[1747750042722,4.04416225,2472.7,2472.4,17.44]
[1747750042918,4.04448938,2472.5,2472.4,17.44]
[1747750043219,4.04448938,2472.5,2472.4,29.626915]
[1747750043392,4.04448938,2472.5,2472.4,28.211676]
[1747750043593,4.04418961,2472.7,2472.4,28.211676]
[1747750043792,4.04444547,2472.6,2472.5,8.700018]
[1747750044007,4.04444547,2472.6,2472.5,3.803911]
[1747750044213,4.04448938,2472.5,2472.4,25.857]
[1747750045016,4.04448938,2472.5,2472.4,25.86]
[1747750045919,4.04448938,2472.5,2472.4,17.44]
[1747750046117,4.04448938,2472.5,2472.4,25.86]
[1747750047914,4.04448938,2472.5,2472.4,17.44]
[1747750048107,4.04448938,2472.5,2472.4,25.862]
[1747750048488,4.04220057,2473.9,2472.5,8.0]
[1747750048686,4.04220057,2473.9,2472.7,0.55]
[1747750048998,4.04383517,2472.9,2472.8,8.972]
[1747750049200,4.04383517,2472.9,2472.8,12.378225]
[1747750049410,4.04383517,2472.9,2472.8,10.463105]
[1747750049614,4.04383517,2472.9,2472.8,8.422]
[1747750050213,4.04416225,2472.7,2472.6,0.81]
[1747750050392,4.04416225,2472.7,2472.6,9.232]
[1747750051399,4.04416225,2472.7,2472.6,12.251742]
[1747750051605,4.04416225,2472.7,2472.6,9.232]
[1747750051922,4.04416225,2472.7,2472.6,16.784996]
[1747750052112,4.04416225,2472.7,2472.6,12.323796]
[1747750052312,4.04388881,2472.9,2472.6,13.18499781]
[1747750052497,4.04342333,2473.2,2472.7,4.23007346]
[1747750052687,4.04270183,2473.6,2472.9,0.7864]
[1747750052892,0.8213,2473.9,2473.0,0.55]
[1747750052893,4.04350814,2473.1,2473.0,0.55]
[1747750053110,4.04345432,2473.2,2473.0,16.630905]
[1747750053309,4.04220057,2473.9,2473.1,3.217532]
[1747750053510,4.04220057,2473.9,2473.0,10.7147305]
[1747750053716,4.04350814,2473.1,2472.9,0.7864]
[1747750053953,4.04367165,2473.0,2472.9,0.7864]
[1747750054099,4.04367165,2473.0,2472.9,8.423]
[1747750055124,4.04367165,2473.0,2472.9,11.733995]
[1747750055290,4.04319034,2473.3,2472.9,11.733995]
[1747750055291,4.04333602,2473.3,2473.0,0.55]
[1747750055497,4.04339907,2473.2,2473.1,0.8037]
[1747750055812,4.04339907,2473.2,2473.1,8.423]
[1747750056017,4.04428151,2472.7,2472.6,0.55]
[1747750056218,4.04432581,2472.6,2472.5,0.55]
[1747750056412,4.04432581,2472.6,2472.5,13.940288]
[1747750056619,4.04432581,2472.6,2472.5,22.363288]
[1747750056831,4.04422832,2472.7,2472.5,22.363288]
[1747750057121,4.04432581,2472.6,2472.5,1.3537]
[1747750057293,4.04432581,2472.6,2472.5,25.121288]
[1747750057696,4.04432581,2472.6,2472.5,22.095288]
[1747750057902,4.04432581,2472.6,2472.5,16.221877]
[1747750058105,4.04432581,2472.6,2472.5,13.779308]
[1747750058331,4.04432581,2472.6,2472.5,12.906742]
[1747750058629,4.04432581,2472.6,2472.5,9.2267]
[1747750059038,4.04432581,2472.6,2472.5,11.99408]
[1747750059199,4.04432581,2472.6,2472.5,9.2267]
[1747750059529,4.04448938,2472.5,2472.4,17.44]
[1747750059694,4.04448938,2472.5,2472.4,25.863]
[1747750060531,4.04448938,2472.5,2472.4,26.6513]
[1747750060923,4.04448938,2472.5,2472.4,25.864]
[1747750062738,4.04403938,2472.8,2472.4,35.88255685]
[1747750062913,4.04308411,2473.4,2472.5,17.587223]
[1747750063101,4.04422623,2472.7,2472.5,8.8288]
[1747750063439,4.04422623,2472.7,2472.6,7.142454]
[1747750064156,4.04424024,2472.7,2472.6,2.2762]
[1747750064453,0.7605,2474.5,2473.4,0.55]
[1747750064748,0.7605,2474.5,2473.6,8.0]
[1747750064749,4.04254453,2473.7,2473.6,8.0]
[1747750065280,4.04248812,2473.8,2473.6,8.0]
[1747750065415,4.04269081,2473.6,2473.5,17.456]
[1747750065615,4.04269081,2473.6,2473.5,25.868]
[1747750067522,4.04262295,2473.7,2473.5,25.868]
[1747750067847,4.4988371,2475.0,2473.5,25.868]
[1747750067848,0.7739,2474.7,2473.6,12.5798]
[1747750068139,4.04233644,2473.9,2473.7,0.7509]
[1747750068332,4.04233644,2473.9,2473.8,9.51659]
[1747750068535,4.04195591,2474.1,2473.9,8.55]
[1747750068728,4.04195591,2474.1,2474.0,18.479836]
[1747750068905,4.04195591,2474.1,2474.0,8.412]
[1747750069111,4.04195591,2474.1,2474.0,11.428]
[1747750069307,4.04177504,2474.2,2474.0,12.608]
[1747750069507,4.04112835,2474.6,2474.3,0.55]
[1747750069737,4.03975115,2475.4,2474.5,0.55]
[1747750069950,4.04089384,2474.7,2474.6,8.411]
[1747750070242,4.04089384,2474.7,2474.6,13.31637]
[1747750070446,4.04122044,2474.5,2474.4,17.453]
[1747750070607,4.04113798,2474.6,2474.5,10.608385]
[1747750070808,4.04113798,2474.6,2474.5,7.596385]
[1747750071141,4.04113798,2474.6,2474.5,11.11840304]
[1747750071314,4.04113798,2474.6,2474.5,6.918685]
[1747750071742,4.04113798,2474.6,2474.5,7.30397734]
[1747750072746,4.04113798,2474.6,2474.5,8.79529234]
[1747750073261,4.04113798,2474.6,2474.5,8.41]
[1747750073464,4.04122044,2474.5,2474.4,17.453]
[1747750073658,4.04122044,2474.5,2474.4,25.863]
[1747750074532,4.04122044,2474.5,2474.4,25.862]
[1747750074756,12.83672044,2474.5,2474.4,25.862]
[1747750075959,12.83672044,2474.5,2473.1,6.8276]
[1747750075960,4.04269081,2473.6,2473.1,6.8276]
[1747750076265,4.04334465,2473.2,2473.1,0.7696]
[1747750076581,4.04334465,2473.2,2473.1,38.274206]
[1747750076726,4.04334465,2473.2,2473.1,28.374683]
[1747750077256,4.04177569,2474.2,2473.1,28.374683]
[1747750077257,4.04308835,2473.4,2473.2,0.55]
[1747750077445,4.04308835,2473.4,2473.3,13.112172]
[1747750077650,4.04308835,2473.4,2473.3,12.245372]
[1747750077857,4.04308835,2473.4,2473.3,8.388522]
[1747750079661,4.04056729,2474.9,2474.0,0.55]
[1747750079866,4.04035331,2475.1,2474.2,8.55]
[1747750080076,4.04146569,2474.4,2474.2,8.55]
[1747750080373,4.04171045,2474.2,2474.1,17.449]
[1747750080571,4.04171045,2474.2,2474.1,25.858]
[1747750081773,4.04171045,2474.2,2474.1,33.858]
[1747750082172,4.04171045,2474.2,2474.1,17.449]
[1747750082376,4.04171045,2474.2,2474.1,25.858]
[1747750083153,4.04171045,2474.2,2474.1,17.449]
[1747750083356,4.04171045,2474.2,2474.1,25.858]
[1747750083867,4.82761045,2474.2,2474.1,17.449]
[1747750084178,4.04187381,2474.1,2474.0,8.409]
[1747750084374,4.04269081,2473.6,2473.5,17.447]
[1747750084577,4.82859081,2473.6,2473.5,25.856]
[1747750085538,4.82859081,2473.6,2473.5,17.447]
[1747750085857,4.04432581,2472.6,2472.5,17.92959015]
[1747750086044,4.04432581,2472.6,2472.5,28.54272115]
[1747750086382,4.04432581,2472.6,2472.5,28.54672115]
[1747750086754,4.04432581,2472.6,2472.5,17.447]
[1747750087088,0.8206,2473.3,2472.5,28.4176]
[1747750087378,4.04334465,2473.2,2472.5,28.4176]
[1747750087582,4.04285425,2473.5,2472.6,8.55]
[1747750087739,4.04329728,2473.3,2472.9,0.8156]
[1747750087960,4.04253834,2473.7,2473.4,8.55]
[1747750088183,4.04269081,2473.6,2473.5,35.265]
[1747750088765,4.04269081,2473.6,2473.5,33.86]
[1747750090154,4.04269081,2473.6,2473.5,44.497966]
[1747750090356,4.04269081,2473.6,2473.5,41.251172]
[1747750090555,4.04269081,2473.6,2473.5,41.801172]
[1747750090990,4.04269081,2473.6,2473.5,37.560991]
[1747750091193,4.04269081,2473.6,2473.5,25.45]
[1747750091379,4.04269081,2473.6,2473.5,33.86]
[1747750091582,4.04269081,2473.6,2473.5,37.93491707]
[1747750091897,4.04269081,2473.6,2473.5,38.07942407]
[1747750092482,4.04269081,2473.6,2473.5,37.48701507]
[1747750092883,4.04269081,2473.6,2473.5,35.22001507]
[1747750093085,4.04269081,2473.6,2473.5,37.35831407]
[1747750093465,4.04269081,2473.6,2473.5,38.18731407]
[1747750093777,4.04269081,2473.6,2473.5,33.86]
[1747750093976,4.04269081,2473.6,2473.5,36.388561]
[1747750094496,4.04138376,2474.4,2473.6,8.0]
[1747750094700,4.04167025,2474.3,2473.9,0.55]
[1747750094897,4.04171045,2474.2,2474.1,8.0]
[1747750095194,4.04220057,2473.9,2473.6,8.0]
[1747750095394,4.04252738,2473.7,2473.6,11.1509]
[1747750095601,4.04252738,2473.7,2473.6,22.103775]
[1747750095804,0.7601,2474.6,2473.7,0.55]
[1747750096100,4.04236397,2473.8,2473.7,0.55]
[1747750096400,4.0420572,2474.0,2473.8,8.0]
[1747750096699,4.0420572,2474.0,2473.7,16.953619]
[1747750096700,4.0420572,2474.0,2473.9,21.1077479]
[1747750096876,4.0420572,2474.0,2473.9,15.6130979]
[1747750097203,4.04203718,2474.0,2473.9,7.6130979]
[1747750097585,4.04180113,2474.2,2474.0,0.55]
[1747750097790,0.8239,2475.2,2474.2,0.55]
[1747750097989,4.04137762,2474.5,2474.3,2.5988836]
[1747750098195,4.04040404,2475.0,2474.4,35.553603]
[1747750098391,0.7549,2475.7,2474.6,0.55]
[1747750098590,4.04089384,2474.7,2474.6,0.55]
[1747750098901,4.04089384,2474.7,2474.6,19.645025]
[1747750099203,4.04089384,2474.7,2474.6,20.23692926]
[1747750099400,4.04089384,2474.7,2474.6,17.62190426]
[1747750099602,4.04089384,2474.7,2474.6,20.285263]
[1747750099814,4.04028476,2475.1,2474.7,8.55]
[1747750099970,0.7549,2475.7,2474.9,0.55]
[1747750100170,4.79426515,2475.7,2474.8,0.55]
[1747750100370,4.0400231,2475.3,2475.0,0.55]
[1747750100679,4.04007756,2475.2,2475.1,21.616121]
[1747750100880,4.04007756,2475.2,2475.1,18.868193]
[1747750101193,4.04000097,2475.3,2475.1,18.868193]
[1747750101384,4.04000097,2475.3,2475.2,7.41395]
[1747750101706,4.04000097,2475.3,2475.2,3.5571]
[1747750102406,4.37716767,2475.3,2475.2,3.5571]
[1747750102704,4.37716767,2475.3,2475.2,2.7861]
[1747750102915,4.04007756,2475.2,2475.1,8.0]
[1747750103089,4.04007756,2475.2,2475.1,21.342861]
[1747750103408,4.04007756,2475.2,2475.1,20.162861]
[1747750103605,4.04007756,2475.2,2475.1,3.683861]
[1747750103816,4.04007756,2475.2,2474.5,0.7527]
[1747750103817,4.04105714,2474.6,2474.5,0.7527]
[1747750104130,4.04122044,2474.5,2474.4,17.93159015]
[1747750104277,4.04122044,2474.5,2474.4,17.449]
[1747750104478,4.82902044,2474.5,2474.4,17.449]
[1747750104829,4.82902044,2474.5,2474.4,25.927]
[1747750105722,8.0,2474.8,2474.4,25.927]
[1747750106013,8.0,2474.8,2472.8,3.63953845]
[1747750106014,4.04236397,2473.8,2473.7,17.444]
[1747750106177,4.04236397,2473.8,2473.7,25.922]
[1747750108911,4.81356397,2473.8,2473.7,25.922]
[1747750111097,4.04236397,2473.8,2473.7,25.922]
[1747750111909,4.04236397,2473.8,2473.7,17.444]
[1747750112197,4.04236397,2473.8,2473.7,25.925]
[1747750112738,4.82626397,2473.8,2473.7,25.925]
[1747750113440,4.04236397,2473.8,2473.7,28.5175]
[1747750113760,0.8281,2474.5,2473.7,42.004288]
[1747750113908,4.04220057,2473.9,2473.8,8.0]
[1747750114108,4.04220057,2473.9,2473.7,20.0365]
[1747750114109,4.04236397,2473.8,2473.7,17.444]
[1747750114303,4.04236397,2473.8,2473.7,25.926]
[1747750114645,4.04236397,2473.8,2473.7,28.5186]
[1747750114802,4.04236397,2473.8,2473.7,36.5186]
[1747750115322,4.04236397,2473.8,2473.7,25.926]
[1747750116677,4.04236397,2473.8,2473.7,35.970193]
[1747750116811,4.04236397,2473.8,2473.7,28.463714]
[1747750117006,4.04236397,2473.8,2473.7,37.809714]
[1747750117629,4.04107653,2474.6,2473.8,8.0]
[1747750117836,4.04220057,2473.9,2473.8,8.0]
[1747750118045,4.04213251,2474.0,2473.8,22.760781]
[1747750118221,4.04213251,2474.0,2473.9,21.922394]
[1747750118415,4.04122044,2474.5,2473.9,21.922394]
[1747750118718,4.04162074,2474.3,2474.1,8.55]
[1747750118921,4.04162074,2474.3,2474.2,18.8254059]
[1747750119237,4.04162074,2474.3,2474.2,11.1918879]
[1747750119555,4.04162074,2474.3,2474.2,13.401452]
[1747750119738,4.04133208,2474.5,2474.3,8.7882]
[1747750120051,4.04056729,2474.9,2474.3,8.7882]
[1747750120052,4.04074313,2474.8,2474.4,0.55]
[1747750120238,4.04102788,2474.7,2474.6,8.55]
[1747750120551,4.04102788,2474.7,2474.6,47.778846]
[1747750120756,4.82020701,2475.5,2474.6,47.778846]
[1747750120955,4.04065037,2474.9,2474.7,0.04040182]
[1747750121255,4.79584182,2475.8,2474.9,8.8009]
[1747750121458,4.03876722,2476.1,2475.0,11.4740354]
[1747750121623,4.37715223,2475.3,2475.2,8.55]
[1747750121822,4.37715223,2475.3,2475.2,12.57525]
[1747750122022,4.37715223,2475.3,2475.2,8.0]
[1747750122250,4.03998553,2475.3,2475.2,11.5564]
[1747750122452,4.03998553,2475.3,2475.2,13.85254354]
[1747750122753,4.03998553,2475.3,2475.2,10.29614354]
[1747750122955,4.03998553,2475.3,2475.2,17.76177154]
[1747750123772,4.03998553,2475.3,2475.2,14.06429354]
[1747750125457,4.03998553,2475.3,2475.2,14.54939354]
[1747750125676,4.03983129,2475.4,2475.2,14.54939354]
[1747750125837,4.83982397,2476.2,2475.3,14.60896135]
[1747750126040,4.83982397,2476.2,2475.5,0.7544]
[1747750126041,4.0386091,2476.1,2475.5,0.7544]
[1747750126255,4.0393516,2475.7,2475.6,33.898]
[1747750126574,4.03917034,2475.8,2475.6,50.12544]
[1747750126874,0.7579,2476.8,2475.7,26.286875]
[1747750127034,4.0384596,2476.2,2475.9,0.55]
[1747750127240,4.03845714,2476.2,2476.1,0.55]
[1747750127421,4.03835889,2476.3,2476.1,35.325097]
[1747750127623,0.7637,2477.1,2476.3,8.0]
[1747750127885,4.03811985,2476.4,2476.3,8.0]
[1747750128018,4.03798761,2476.5,2476.3,8.0]
[1747750128019,0.7637,2477.1,2476.4,0.55]
[1747750128219,4.03779374,2476.6,2476.5,25.443]
[1747750128457,4.03779374,2476.6,2476.5,33.898]
[1747750129864,4.03779374,2476.6,2476.5,33.896]
[1747750130343,4.03779374,2476.6,2476.5,37.79836288]
[1747750131461,4.03779374,2476.6,2476.5,33.896]
[1747750132969,4.03779374,2476.6,2476.5,48.459781]
[1747750133538,4.03738783,2476.9,2476.6,8.0]
[1747750133782,0.7954,2477.7,2476.9,0.55]
[1747750133952,4.03657717,2477.4,2477.1,0.55]
[1747750134278,4.03658461,2477.4,2477.3,8.55]
[1747750134436,4.03648986,2477.4,2477.3,23.945571]
[1747750134838,4.03648986,2477.4,2477.3,13.685541]
[1747750135038,4.03648986,2477.4,2477.3,24.809271]
[1747750135887,4.03648986,2477.4,2477.3,25.442]
[1747750136055,4.03648986,2477.4,2477.3,27.9862]
[1747750136385,4.03648986,2477.4,2477.3,32.550269]
[1747750136704,4.03648986,2477.4,2477.3,30.193419]
[1747750136884,4.03648986,2477.4,2477.3,29.207008]
[1747750137352,4.03648986,2477.4,2477.3,29.757008]
[1747750137971,4.03648986,2477.4,2477.3,29.207008]
[1747750138691,4.03648986,2477.4,2477.3,14.704008]
[1747750138983,4.03648986,2477.4,2477.3,24.661589]
[1747750140056,4.03648986,2477.4,2477.3,22.5]
[1747750140243,4.03648986,2477.4,2477.3,23.977227]
[1747750140446,4.03648986,2477.4,2477.3,28.289441]
[1747750140649,4.03648986,2477.4,2477.3,8.0]
[1747750140883,4.03763071,2476.7,2476.6,8.7933]
[1747750141064,4.03779374,2476.6,2476.3,6.8453]
[1747750141280,4.03779374,2476.6,2476.4,35.117615]
[1747750141281,4.0379916,2476.5,2476.4,35.117615]
[1747750141479,4.0379916,2476.5,2476.4,31.964015]
[1747750141715,4.0379916,2476.5,2476.4,38.549151]
[1747750141864,4.79408788,2477.4,2476.6,0.7682]
[1747750142209,4.03763071,2476.7,2476.6,0.7682]
[1747750142353,4.03755484,2476.8,2476.7,0.55]
[1747750142553,4.03795679,2476.5,2476.4,21.11166837]
[1747750142795,4.03795679,2476.5,2476.4,42.07171937]
[1747750143181,4.03795679,2476.5,2476.4,42.62171937]
[1747750143811,4.03795679,2476.5,2476.4,29.1517315]
[1747750144113,4.03795679,2476.5,2476.4,25.876]
[1747750144302,4.03795679,2476.5,2476.4,17.429]
[1747750144523,3.98795679,2476.5,2476.4,25.876]
[1747750145205,4.03909847,2475.8,2475.7,11.46524]
[1747750145413,4.03958796,2475.5,2475.4,18.65085757]
[1747750145590,4.03958796,2475.5,2475.4,26.32995757]
[1747750146811,4.03958796,2475.5,2475.4,26.33095757]
[1747750147107,4.03919933,2475.8,2475.5,8.0]
[1747750147274,4.03912232,2475.8,2475.7,0.55]
[1747750147472,4.03877221,2476.0,2475.9,0.55]
[1747750147674,4.03877221,2476.0,2475.9,22.477382]
[1747750147887,4.03851521,2476.2,2475.9,27.201032]
[1747750148093,4.03877221,2476.0,2475.9,8.55]
[1747750148298,4.03877221,2476.0,2475.9,19.220768]
[1747750148503,4.03877221,2476.0,2475.9,8.448]
[1747750148700,4.03877221,2476.0,2475.9,25.28485]
[1747750148875,4.03877221,2476.0,2475.9,16.448]
[1747750149075,4.03877221,2476.0,2475.9,8.448]
[1747750149278,4.03958796,2475.5,2475.4,17.88295757]
[1747750149510,4.03958796,2475.5,2475.4,26.33095757]
[1747750149808,4.03820887,2476.4,2475.4,26.33095757]
[1747750149809,4.03926162,2475.7,2475.6,0.55]
[1747750150008,4.03917294,2475.8,2475.6,9.962378]
[1747750150210,4.03872128,2476.1,2475.8,8.55]
[1747750150515,4.0386091,2476.1,2476.0,8.0]